bitfinex/quotes_BTCUSD_20240728
["timestamp","ask_amount","ask_price","bid_price","bid_amount"]
[1722195366199,1.35014497,68312.0,68311.0,0.002]
[1722195366603,1.25014497,68312.0,68311.0,0.002]
[1722195367006,1.30014497,68312.0,68311.0,0.002]
[1722195367330,1.25014497,68312.0,68311.0,0.002]
[1722195367899,1.46659681,68312.0,68311.0,0.002]
[1722195368113,1.26633545,68312.0,68311.0,0.002]
[1722195368314,1.26633545,68312.0,68311.0,0.0817]
[1722195368315,1.04987739,68312.0,68311.0,0.0817]
[1722195368745,1.04987739,68312.0,68311.0,0.1429]
[1722195368942,1.13387739,68312.0,68311.0,0.1429]
[1722195369416,1.10587739,68312.0,68311.0,0.1429]
[1722195369765,1.13187739,68312.0,68311.0,0.1429]
[1722195370191,1.34533545,68312.0,68311.0,0.1429]
[1722195370357,1.12887739,68312.0,68311.0,0.1429]
[1722195370554,1.14287739,68312.0,68311.0,0.1429]
[1722195371196,1.1425773,68312.0,68311.0,0.1429]
[1722195371599,1.14257774,68312.0,68311.0,0.1429]
[1722195371824,1.29283731,68312.0,68311.0,0.1429]
[1722195372029,1.14257774,68312.0,68311.0,0.1429]
[1722195372401,1.35902683,68312.0,68311.0,0.1429]
[1722195372637,1.040766,68312.0,68311.0,0.1429]
[1722195372844,1.14260635,68312.0,68311.0,0.1429]
[1722195373269,1.3590599,68312.0,68311.0,0.1429]
[1722195373468,1.3590599,68312.0,68311.0,0.002]
[1722195373715,1.14260635,68312.0,68311.0,0.002]
[1722195374381,1.040766,68312.0,68311.0,0.002]
[1722195374587,1.14260112,68312.0,68311.0,0.002]
[1722195374788,1.29286069,68312.0,68311.0,0.002]
[1722195375634,1.67162012,68312.0,68311.0,0.002]
[1722195377812,1.67019791,68312.0,68311.0,0.002]
[1722195380013,1.67019791,68312.0,68311.0,0.002924]
[1722195380215,1.90441691,68312.0,68311.0,0.002924]
[1722195380416,1.92741691,68312.0,68311.0,0.002924]
[1722195380624,2.07767648,68312.0,68311.0,0.002924]
[1722195381026,2.05467222,68312.0,68311.0,0.002924]
[1722195381577,2.06867555,68312.0,68311.0,0.002924]
[1722195381908,2.05467555,68312.0,68311.0,0.002924]
[1722195382117,2.06867555,68312.0,68311.0,0.002924]
[1722195382717,2.00467555,68312.0,68311.0,0.002924]
[1722195382917,2.06867555,68312.0,68311.0,0.002924]
[1722195387753,2.06832797,68312.0,68311.0,0.002924]
[1722195389892,1.204062,68307.0,68306.0,0.009064]
[1722195390067,1.4881264,68307.0,68306.0,0.009064]
[1722195390296,1.3881264,68307.0,68306.0,0.009064]
[1722195390565,1.4881264,68307.0,68306.0,0.009064]
[1722195390818,1.30336089,68307.0,68306.0,0.009064]
[1722195391010,1.40320194,68307.0,68306.0,0.089164]
[1722195391245,1.01912489,68307.0,68306.0,0.089164]
[1722195391371,1.13283848,68307.0,68306.0,0.089164]
[1722195391585,1.34925841,68307.0,68306.0,0.089164]
[1722195393456,1.36225841,68307.0,68306.0,0.089164]
[1722195394059,1.36245302,68307.0,68306.0,0.089164]
[1722195396131,1.14603577,68307.0,68306.0,0.089164]
[1722195397295,1.04612489,68307.0,68306.0,0.089164]
[1722195397497,1.13461085,68307.0,68306.0,0.089164]
[1722195397877,1.19342684,68307.0,68306.0,0.089164]
[1722195398503,1.59756949,68307.0,68306.0,0.009064]
[1722195400541,1.59777729,68307.0,68306.0,0.009064]
[1722195401182,1.59777727,68307.0,68306.0,0.009064]
[1722195402956,1.59810258,68307.0,68306.0,0.009064]
[1722195403155,1.54810258,68307.0,68306.0,0.009064]
[1722195403524,1.59810258,68307.0,68306.0,0.009064]
[1722195403905,1.59792463,68307.0,68306.0,0.009064]
[1722195404273,1.54792463,68307.0,68306.0,0.009064]
[1722195405011,1.49792463,68307.0,68306.0,0.009064]
[1722195405404,1.59792463,68307.0,68306.0,0.009064]
[1722195405605,1.42801798,68307.0,68306.0,0.009064]
[1722195406546,1.52801798,68307.0,68306.0,0.009064]
[1722195407203,1.52811979,68307.0,68306.0,0.009064]
[1722195408292,1.42811979,68307.0,68306.0,0.009064]
[1722195408529,1.14388379,68307.0,68306.0,0.148464]
[1722195409614,1.0420546,68307.0,68306.0,0.148464]
[1722195409816,0.82564779,68307.0,68306.0,0.148464]
[1722195410405,0.8265186,68307.0,68306.0,0.148464]
[1722195411249,1.0607546,68307.0,68306.0,0.148464]
[1722195411406,0.8265186,68307.0,68306.0,0.148464]
[1722195411587,1.0607546,68307.0,68306.0,0.148464]
[1722195413574,0.97094088,68307.0,68306.0,0.148464]
[1722195413773,1.06063364,68307.0,68306.0,0.148464]
[1722195416848,0.97094088,68307.0,68306.0,0.148464]
[1722195417049,1.0610119,68307.0,68306.0,0.148464]
[1722195420144,1.06132176,68307.0,68306.0,0.148464]
[1722195420309,1.27770342,68307.0,68306.0,0.148464]
[1722195420508,0.97094088,68307.0,68306.0,0.148464]
[1722195420710,1.27816418,68307.0,68306.0,0.148464]
[1722195422329,0.97094088,68307.0,68306.0,0.148464]
[1722195422522,1.27831672,68307.0,68306.0,0.148464]
[1722195425431,1.06190268,68307.0,68306.0,0.148464]
[1722195425578,0.97094088,68307.0,68306.0,0.148464]
[1722195425780,1.0619622,68307.0,68306.0,0.148464]
[1722195427797,1.27836993,68307.0,68306.0,0.148464]
[1722195429019,1.215999,68307.0,68306.0,0.148464]
[1722195429220,1.27866731,68307.0,68306.0,0.148464]
[1722195430437,1.06225954,68307.0,68306.0,0.148464]
[1722195431079,1.27866731,68307.0,68306.0,0.148464]
[1722195432363,1.27862059,68307.0,68306.0,0.148464]
[1722195432792,1.27857921,68307.0,68306.0,0.148464]
[1722195432995,1.25157854,68307.0,68306.0,0.148464]
[1722195433198,1.27857854,68307.0,68306.0,0.148464]
[1722195433575,1.04920456,68307.0,68306.0,0.148464]
[1722195433726,1.04620456,68307.0,68306.0,0.148464]
[1722195433925,1.06020456,68307.0,68306.0,0.148464]
[1722195435416,1.18532588,68307.0,68306.0,0.148464]
[1722195435621,1.27679453,68307.0,68306.0,0.148464]
[1722195436245,1.06040953,68307.0,68306.0,0.148464]
[1722195437057,1.27679453,68307.0,68306.0,0.148464]
[1722195437863,1.06040953,68307.0,68306.0,0.148464]
[1722195438665,0.96894088,68307.0,68306.0,0.148464]
[1722195438896,1.06018061,68307.0,68306.0,0.148464]
[1722195439689,1.27656558,68307.0,68306.0,0.148464]
[1722195441970,0.96894088,68307.0,68306.0,0.148464]
[1722195442164,1.2767693,68307.0,68306.0,0.148464]
[1722195442519,1.27674475,68307.0,68306.0,0.148464]
[1722195444048,1.0603879,68307.0,68306.0,0.148464]
[1722195444253,1.06038243,68307.0,68306.0,0.148464]
[1722195445390,1.06024949,68307.0,68306.0,0.148464]
[1722195446363,1.14424949,68307.0,68306.0,0.148464]
[1722195448622,1.14431519,68307.0,68306.0,0.148464]
[1722195448835,1.36071282,68307.0,68306.0,0.148464]
[1722195449601,1.14431519,68307.0,68306.0,0.148464]
[1722195450347,1.36071282,68307.0,68306.0,0.148464]
[1722195450782,0.80824082,68307.0,68306.0,0.148464]
[1722195450935,0.59184319,68307.0,68306.0,0.148464]
[1722195451142,0.82607919,68307.0,68306.0,0.148464]
[1722195451960,0.72070488,68307.0,68306.0,0.148464]
[1722195452124,0.80271842,68307.0,68306.0,0.148464]
[1722195452335,0.72570488,68307.0,68306.0,0.148464]
[1722195452500,0.80671842,68307.0,68306.0,0.148464]
[1722195452671,0.79471842,68307.0,68306.0,0.148464]
[1722195453163,0.80371842,68307.0,68306.0,0.148464]
[1722195455231,0.8034825,68307.0,68306.0,0.148464]
[1722195455950,1.0377185,68307.0,68306.0,0.148464]
[1722195456437,1.0377185,68307.0,68306.0,0.009064]
[1722195458582,1.03670744,68307.0,68306.0,0.009064]
[1722195461128,1.25300959,68307.0,68306.0,0.009064]
[1722195461674,1.19622394,68307.0,68306.0,0.009064]
[1722195461877,1.25341834,68307.0,68306.0,0.009064]
[1722195462078,1.25351778,68307.0,68306.0,0.009064]
[1722195463514,1.03718073,68307.0,68306.0,0.009064]
[1722195465057,1.03704213,68307.0,68306.0,0.009064]
[1722195465621,1.25337613,68307.0,68306.0,0.009064]
[1722195467049,1.03704213,68307.0,68306.0,0.009064]
[1722195467873,1.25337863,68307.0,68306.0,0.009064]
[1722195468219,1.25337863,68307.0,68306.0,0.090964]
[1722195468220,1.03704213,68307.0,68306.0,0.090964]
[1722195469792,1.03704213,68307.0,68306.0,0.009064]
[1722195469793,1.64750054,68307.0,68306.0,0.009064]
[1722195469989,1.70850054,68307.0,68306.0,0.009064]
[1722195470195,1.55967813,68307.0,68306.0,0.009064]
[1722195470797,1.55067813,68307.0,68306.0,0.009064]
[1722195471197,1.56067813,68307.0,68306.0,0.009064]
[1722195471458,1.59238643,68307.0,68306.0,1e-08]
[1722195471796,1.52608531,68307.0,68306.0,1e-08]
[1722195472099,1.5924002,68307.0,68306.0,1e-08]
[1722195473316,1.347038,68302.0,68301.0,0.002]
[1722195473691,1.62986132,68302.0,68301.0,0.002]
[1722195474577,1.54886132,68302.0,68301.0,0.002]
[1722195475970,1.68874612,68302.0,68301.0,0.002]
[1722195476167,1.40596132,68302.0,68301.0,0.002]
[1722195476395,1.35596132,68302.0,68301.0,0.002924]
[1722195476985,1.40596132,68302.0,68301.0,0.002924]
[1722195477186,1.35596132,68302.0,68301.0,0.002924]
[1722195477533,1.12170832,68302.0,68301.0,0.002924]
[1722195477732,1.022885,68302.0,68301.0,0.002924]
[1722195477932,1.12129751,68302.0,68301.0,0.002924]
[1722195480441,1.54845051,68302.0,68301.0,0.002924]
[1722195480643,1.41419751,68302.0,68301.0,0.002924]
[1722195481458,1.41457725,68302.0,68301.0,0.002924]
[1722195481678,1.64883025,68302.0,68301.0,0.002924]
[1722195483296,1.54900453,68302.0,68301.0,0.002924]
[1722195483527,1.51642235,68302.0,68301.0,0.002924]
[1722195483760,1.54900239,68302.0,68301.0,0.002924]
[1722195485299,1.76501881,68302.0,68301.0,0.002924]
[1722195485499,1.53076581,68302.0,68301.0,0.002924]
[1722195485696,1.31474939,68302.0,68301.0,0.002924]
[1722195486119,1.76501881,68302.0,68301.0,0.002924]
[1722195486674,1.69849987,68302.0,68301.0,0.002924]
[1722195486876,1.76477234,68302.0,68301.0,0.002924]
[1722195487693,1.38761934,68302.0,68301.0,0.002924]
[1722195488392,1.27161905,68302.0,68301.0,0.002924]
[1722195488775,1.17161905,68302.0,68301.0,0.002924]
[1722195490068,1.17163438,68302.0,68301.0,0.002924]
[1722195490280,1.12163438,68302.0,68301.0,0.002924]
[1722195490458,1.12163438,68302.0,68301.0,0.082124]
[1722195490459,1.12163433,68302.0,68301.0,0.082124]
[1722195493086,1.12170678,68302.0,68301.0,0.082124]
[1722195493730,1.18042178,68302.0,68301.0,0.082124]
[1722195496333,1.17999678,68302.0,68301.0,0.082124]
[1722195496505,1.081175,68302.0,68301.0,0.082124]
[1722195496706,1.17997051,68302.0,68301.0,0.082124]
[1722195497418,1.17997051,68302.0,68301.0,0.002924]
[1722195499271,1.39593201,68302.0,68301.0,0.002924]
[1722195499930,1.081175,68302.0,68301.0,0.002924]
[1722195500132,1.39590275,68302.0,68301.0,0.002924]
[1722195500346,1.081175,68302.0,68301.0,0.002924]
[1722195500546,1.39582965,68302.0,68301.0,0.002924]
[1722195502129,1.39596099,68302.0,68301.0,0.002924]
[1722195502529,1.17989631,68302.0,68301.0,0.002924]
[1722195502729,1.39598214,68302.0,68301.0,0.002924]
[1722195503128,1.17989605,68302.0,68301.0,0.002924]
[1722195503473,1.39598276,68302.0,68301.0,0.002924]
[1722195503609,1.17989605,68302.0,68301.0,0.002924]
[1722195506523,1.18027446,68302.0,68301.0,0.002924]
[1722195508969,1.18111446,68302.0,68301.0,0.002924]
[1722195509926,1.18079169,68302.0,68301.0,0.002924]
[1722195510451,1.18063599,68302.0,68301.0,0.002924]
[1722195510652,1.70718899,68302.0,68301.0,0.002924]
[1722195512159,1.608568,68302.0,68301.0,0.002924]
[1722195512313,1.70630261,68302.0,68301.0,0.002924]
[1722195512989,1.70648853,68302.0,68301.0,0.002924]
[1722195514107,1.17993553,68302.0,68301.0,0.002924]
[1722195514337,1.22993553,68302.0,68301.0,0.002924]
[1722195515525,1.17993553,68302.0,68301.0,0.002924]
[1722195515677,1.41418853,68302.0,68301.0,0.002924]
[1722195516202,1.41396585,68302.0,68301.0,0.002924]
[1722195516364,1.17971285,68302.0,68301.0,0.002924]
[1722195519016,1.22971285,68302.0,68301.0,0.002924]
[1722195519216,1.46396585,68302.0,68301.0,0.002924]
[1722195519436,1.22974284,68302.0,68301.0,0.002924]
[1722195520099,1.22974285,68302.0,68301.0,0.002924]
[1722195520376,1.17974285,68302.0,68301.0,0.002924]
[1722195520562,1.22974285,68302.0,68301.0,0.002924]
[1722195521334,1.17974285,68302.0,68301.0,0.002924]
[1722195521758,1.132015,68302.0,68301.0,0.002924]
[1722195521972,1.22975483,68302.0,68301.0,0.002924]
[1722195522808,1.32972153,68302.0,68301.0,0.002924]
[1722195526093,1.32938354,68302.0,68301.0,0.002924]
[1722195527610,1.39398354,68302.0,68301.0,0.002924]
[1722195528063,1.47298354,68302.0,68301.0,0.002924]
[1722195528977,1.32938354,68302.0,68301.0,0.002924]
[1722195529393,1.232015,68302.0,68301.0,0.002924]
[1722195529570,1.32932782,68302.0,68301.0,0.002924]
[1722195529774,1.132015,68302.0,68301.0,0.002924]
[1722195529969,1.22932776,68302.0,68301.0,0.002924]
[1722195532636,1.2299235,68302.0,68301.0,0.002924]
[1722195534106,1.2299235,68302.0,68301.0,0.086224]
[1722195534284,1.1799235,68302.0,68301.0,0.086224]
[1722195534489,1.2299235,68302.0,68301.0,0.086224]
[1722195534892,1.1799235,68302.0,68301.0,0.152824]
[1722195535774,1.16963249,68302.0,68301.0,0.152824]
[1722195539540,1.082015,68302.0,68301.0,0.152824]
[1722195539733,1.16973548,68302.0,68301.0,0.152824]
[1722195539960,1.16973548,68302.0,68301.0,0.086224]
[1722195540399,1.21973548,68302.0,68301.0,0.002924]
[1722195540930,1.16973548,68302.0,68301.0,0.002924]
[1722195541320,1.21973548,68302.0,68301.0,0.002924]
[1722195541523,1.16973548,68302.0,68301.0,0.002924]
[1722195544658,1.17003283,68302.0,68301.0,0.002924]
[1722195547925,1.082015,68302.0,68301.0,0.002924]
[1722195548132,1.1702529,68302.0,68301.0,0.002924]
[1722195548930,1.16987314,68302.0,68301.0,0.002924]
[1722195550351,1.08587314,68302.0,68301.0,0.002924]
[1722195550556,1.16987314,68302.0,68301.0,0.141724]
[1722195551252,1.08163524,68302.0,68301.0,0.141724]
[1722195551620,1.17108129,68302.0,68301.0,0.141724]
[1722195553254,1.08163524,68302.0,68301.0,0.141724]
[1722195553516,1.17128612,68302.0,68301.0,0.141724]
[1722195553714,1.17108889,68302.0,68301.0,0.141724]
[1722195554459,1.08163524,68302.0,68301.0,0.141724]
[1722195554701,1.17108874,68302.0,68301.0,0.141724]
[1722195555422,1.17108874,68302.0,68301.0,0.077924]
[1722195558540,1.17108874,68302.0,68301.0,0.141724]
[1722195558541,0.96920679,68302.0,68301.0,0.141724]
[1722195558893,0.75283574,68302.0,68301.0,0.141724]
[1722195559986,1.08708874,68302.0,68301.0,0.002924]
[1722195560465,1.08708874,68302.0,68301.0,0.141724]
[1722195561161,1.05370461,68302.0,68301.0,0.141724]
[1722195561328,1.07545726,68302.0,68301.0,0.141724]
[1722195561531,0.99763524,68302.0,68301.0,0.141724]
[1722195561735,1.07545614,68302.0,68301.0,0.141724]
[1722195564275,0.99763524,68302.0,68301.0,0.141724]
[1722195564438,1.07536063,68302.0,68301.0,0.141724]
[1722195566778,1.29168528,68302.0,68301.0,0.141724]
[1722195567003,1.07536063,68302.0,68301.0,0.141724]
[1722195567617,1.07484061,68302.0,68301.0,0.141724]
[1722195569898,0.84058761,68302.0,68301.0,0.141724]
[1722195570794,0.76338224,68302.0,68301.0,0.141724]
[1722195571000,0.84108443,68302.0,68301.0,0.141724]
[1722195571448,0.84108465,68302.0,68301.0,0.141724]
[1722195573483,0.25625741,68302.0,68301.0,0.141724]
[1722195573682,0.19754241,68302.0,68301.0,0.141724]
[1722195573885,0.31466841,68302.0,68301.0,0.15239784]
[1722195574021,0.236966,68302.0,68301.0,0.15239784]
[1722195574221,0.19760493,68302.0,68301.0,0.15239784]
[1722195574456,0.20773093,68302.0,68301.0,0.15239784]
[1722195574692,0.30773093,68302.0,68301.0,0.15239784]
[1722195574907,0.54198393,68302.0,68301.0,0.15239784]
[1722195575154,0.52998393,68302.0,68301.0,0.15239784]
[1722195575384,0.53298393,68302.0,68301.0,0.15239784]
[1722195575584,0.53298393,68302.0,68301.0,0.141724]
[1722195576039,1.00148993,68302.0,68301.0,0.077924]
[1722195576281,1.00148993,68302.0,68301.0,0.002924]
[1722195576489,1.21772966,68302.0,68301.0,0.002924]
[1722195576817,1.21472966,68302.0,68301.0,0.002924]
[1722195577041,1.00448993,68302.0,68301.0,0.002924]
[1722195577434,1.00386753,68302.0,68301.0,0.002924]
[1722195577835,1.00586753,68302.0,68301.0,0.002924]
[1722195578242,1.00686753,68302.0,68301.0,0.002924]
[1722195578662,1.01886753,68302.0,68301.0,0.002924]
[1722195580741,1.01852777,68302.0,68301.0,0.002924]
[1722195583877,1.0178785,68302.0,68301.0,0.002924]
[1722195585843,1.1018785,68302.0,68301.0,0.002924]
[1722195586142,1.0178785,68302.0,68301.0,0.002924]
[1722195586429,1.1018785,68302.0,68301.0,0.002924]
[1722195590874,1.1020665,68302.0,68301.0,0.002924]
[1722195591920,1.31840443,68302.0,68301.0,0.002924]
[1722195592737,1.31821524,68302.0,68301.0,0.002924]
[1722195593657,1.10185518,68302.0,68301.0,0.002924]
[1722195593888,1.31821242,68302.0,68301.0,0.002924]
[1722195596982,1.025725,68302.0,68301.0,0.002924]
[1722195597295,1.31859473,68302.0,68301.0,0.002924]
[1722195597854,1.01821085,68302.0,68301.0,0.146824]
[1722195600099,0.941725,68302.0,68301.0,0.146824]
[1722195600320,1.02067611,68302.0,68301.0,0.146824]
[1722195600729,1.02067572,68302.0,68301.0,0.146824]
[1722195601332,0.78642272,68302.0,68301.0,0.146824]
[1722195602227,0.88642272,68302.0,68301.0,0.146824]
[1722195602628,0.88684296,68302.0,68301.0,0.146824]
[1722195604569,0.88684296,68302.0,68301.0,0.084624]
[1722195605548,1.12109596,68302.0,68301.0,0.084624]
[1722195605794,0.86449757,68302.0,68301.0,0.084624]
[1722195606036,0.88723067,68302.0,68301.0,0.084624]
[1722195606547,1.12148367,68302.0,68301.0,0.084624]
[1722195606782,0.88723067,68302.0,68301.0,0.084624]
[1722195607870,1.12148367,68302.0,68301.0,0.084624]
[1722195611344,0.88723067,68302.0,68301.0,0.084624]
[1722195611750,1.12148367,68302.0,68301.0,0.084624]
[1722195612312,1.12151519,68302.0,68301.0,0.084624]
[1722195612517,1.12151379,68302.0,68301.0,0.084624]
[1722195612748,1.041725,68302.0,68301.0,0.084624]
[1722195612952,1.12151432,68302.0,68301.0,0.084624]
[1722195613459,1.041725,68302.0,68301.0,0.084624]
[1722195613643,1.12141853,68302.0,68301.0,0.084624]
[1722195615998,1.12128968,68302.0,68301.0,0.084624]
[1722195617132,1.12128968,68302.0,68301.0,0.002924]
[1722195618147,1.26358968,68302.0,68301.0,0.002924]
[1722195618352,1.48002608,68302.0,68301.0,0.002924]
[1722195618584,1.26358968,68302.0,68301.0,0.002924]
[1722195619007,1.26159847,68302.0,68301.0,0.002924]
[1722195619891,1.47800717,68302.0,68301.0,0.002924]
[1722195620313,1.26159847,68302.0,68301.0,0.002924]
[1722195621500,1.47801143,68302.0,68301.0,0.002924]
[1722195622102,1.184025,68302.0,68301.0,0.002924]
[1722195622310,1.47830362,68302.0,68301.0,0.002924]
[1722195622846,1.47823039,68302.0,68301.0,0.002924]
[1722195623124,1.33593039,68302.0,68301.0,0.081024]
[1722195625486,1.33608006,68302.0,68301.0,0.081024]
[1722195628346,1.42008006,68302.0,68301.0,0.081024]
[1722195632031,1.18228147,68302.0,68301.0,0.081024]
[1722195632243,1.42084667,68302.0,68301.0,0.081024]
[1722195632480,1.125725,68302.0,68301.0,0.081024]
[1722195632678,1.20464817,68302.0,68301.0,0.081024]
[1722195634475,1.2046629,68302.0,68301.0,0.081024]
[1722195635349,1.125725,68302.0,68301.0,0.081024]
[1722195635551,1.20463248,68302.0,68301.0,0.081024]
[1722195637651,1.12063248,68302.0,68301.0,0.081024]
[1722195637846,0.88637948,68302.0,68301.0,0.081024]
[1722195638267,0.97037948,68302.0,68301.0,0.081024]
[1722195642006,0.97031805,68302.0,68301.0,0.081024]
[1722195642500,0.891472,68302.0,68301.0,0.081024]
[1722195642696,0.9705334,68302.0,68301.0,0.081024]
[1722195643523,0.9705334,68302.0,68301.0,0.07178085]
[1722195645423,0.97058267,68302.0,68301.0,0.07178085]
[1722195647242,0.585642,68301.0,68300.0,0.009064]
[1722195647483,0.76630687,68301.0,68300.0,0.009064]
[1722195648141,0.76475267,68301.0,68300.0,0.009064]
[1722195648345,0.76588929,68301.0,68300.0,0.009064]
[1722195648642,0.76475267,68301.0,68300.0,0.009064]
[1722195648943,0.76621893,68301.0,68300.0,0.009064]
[1722195649074,0.76504897,68301.0,68300.0,0.009064]
[1722195649282,0.76656679,68301.0,68300.0,0.009064]
[1722195649696,0.77756679,68301.0,68300.0,0.009064]
[1722195650303,0.78356679,68301.0,68300.0,0.009064]
[1722195652114,0.78368832,68301.0,68300.0,0.009064]
[1722195652494,0.78364747,68301.0,68300.0,0.009064]
[1722195652668,0.78212965,68301.0,68300.0,0.009064]
[1722195652874,0.78335399,68301.0,68300.0,0.009064]
[1722195654244,0.70386634,68301.0,68300.0,0.009064]
[1722195654390,0.78314718,68301.0,68300.0,0.009064]
[1722195655235,0.78314718,68301.0,68300.0,0.086364]
[1722195655505,0.78317457,68301.0,68300.0,0.086364]
[1722195655777,0.78195023,68301.0,68300.0,0.086364]
[1722195655981,0.78350443,68301.0,68300.0,0.086364]
[1722195656357,0.78195023,68301.0,68300.0,0.086364]
[1722195656568,0.78350443,68301.0,68300.0,0.086364]
[1722195657323,0.19786243,68301.0,68300.0,0.22489379]
[1722195657526,0.19630823,68301.0,68300.0,0.22489379]
[1722195657863,0.19630823,68301.0,68300.0,0.23988782]
[1722195658084,0.34612795,68301.0,68300.0,0.23988782]
[1722195658297,0.34612795,68301.0,68300.0,0.16475803]
[1722195658509,0.1075542,68301.0,68300.0,0.16475803]
[1722195658653,0.18209862,68301.0,68300.0,0.16475803]
[1722195658858,0.18365282,68301.0,68300.0,0.16475803]
[1722195659068,0.33191854,68301.0,68300.0,0.16475803]
[1722195659298,0.18365282,68301.0,68300.0,0.16475803]
[1722195660801,0.53503782,68301.0,68300.0,0.02405803]
[1722195661019,0.76929482,68301.0,68300.0,0.02405803]
[1722195661226,0.76929482,68301.0,68300.0,0.009064]
[1722195661227,0.6891962,68301.0,68300.0,0.009064]
[1722195661432,0.76781802,68301.0,68300.0,0.086364]
[1722195661638,0.76937222,68301.0,68300.0,0.086364]
[1722195661874,0.76955506,68301.0,68300.0,0.149764]
[1722195662084,0.76955506,68301.0,68300.0,0.086364]
[1722195664310,0.76974271,68301.0,68300.0,0.086364]
[1722195665681,0.76774271,68301.0,68300.0,0.086364]
[1722195666098,0.77574271,68301.0,68300.0,0.086364]
[1722195666858,0.77658271,68301.0,68300.0,0.086364]
[1722195667266,0.6960362,68301.0,68300.0,0.086364]
[1722195667464,0.77517842,68301.0,68300.0,0.009064]
[1722195667674,1.01098962,68301.0,68300.0,0.009064]
[1722195668476,1.00943542,68301.0,68300.0,0.009064]
[1722195669727,1.01098962,68301.0,68300.0,0.009064]
[1722195670292,1.00943542,68301.0,68300.0,0.009064]
[1722195670496,1.01098962,68301.0,68300.0,0.009064]
[1722195670691,1.01107279,68301.0,68300.0,0.009064]
[1722195671047,0.928739,68301.0,68300.0,0.009064]
[1722195671243,1.01107395,68301.0,68300.0,0.009064]
[1722195671446,1.00507395,68301.0,68300.0,0.009064]
[1722195671815,1.00307395,68301.0,68300.0,0.009064]
[1722195672015,1.01707395,68301.0,68300.0,0.009064]
[1722195672241,1.01707395,68301.0,68300.0,0.085664]
[1722195672435,1.09951975,68301.0,68300.0,0.085664]
[1722195672680,1.09051975,68301.0,68300.0,0.085664]
[1722195673062,1.10051975,68301.0,68300.0,0.085664]
[1722195673683,1.019739,68301.0,68300.0,0.085664]
[1722195673879,1.10059029,68301.0,68300.0,0.085664]
[1722195674987,0.78233329,68301.0,68300.0,0.150864]
[1722195677260,0.701482,68301.0,68300.0,0.150864]
[1722195677459,0.78222394,68301.0,68300.0,0.150864]
[1722195680622,0.78220837,68301.0,68300.0,0.150864]
[1722195681094,0.701482,68301.0,68300.0,0.150864]
[1722195681295,0.78223998,68301.0,68300.0,0.150864]
[1722195683833,0.701482,68301.0,68300.0,0.150864]
[1722195684038,0.78214585,68301.0,68300.0,0.150864]
[1722195687043,0.701482,68301.0,68300.0,0.150864]
[1722195687320,0.78224769,68301.0,68300.0,0.150864]
[1722195690525,0.78244791,68301.0,68300.0,0.150864]
[1722195690901,0.701482,68301.0,68300.0,0.150864]
[1722195691132,0.7825491,68301.0,68300.0,0.150864]
[1722195693897,0.78243856,68301.0,68300.0,0.150864]
[1722195695372,0.78243856,68301.0,68300.0,0.085664]
[1722195696269,0.78243856,68301.0,68300.0,0.009064]
[1722195696470,0.78399276,68301.0,68300.0,0.009064]
[1722195697112,0.78365033,68301.0,68300.0,0.009064]
[1722195700475,0.7247297,68301.0,68300.0,0.009064]
[1722195700677,0.78216517,68301.0,68300.0,0.009064]
[1722195700907,0.78216563,68301.0,68300.0,0.009064]
[1722195703750,0.78246237,68301.0,68300.0,0.009064]
[1722195704245,0.78246237,68301.0,68300.0,0.156164]
[1722195704246,0.19682037,68301.0,68300.0,0.156164]
[1722195704448,0.19682037,68301.0,68300.0,0.17116077]
[1722195704612,0.19682037,68301.0,68300.0,0.28829077]
[1722195705237,0.19837457,68301.0,68300.0,0.28829077]
[1722195705736,0.33996512,68301.0,68300.0,0.28829077]
[1722195705937,0.33996512,68301.0,68300.0,0.28929077]
[1722195706140,0.33996512,68301.0,68300.0,0.28829077]
[1722195706378,0.32996512,68301.0,68300.0,0.28829077]
[1722195706698,0.34151932,68301.0,68300.0,0.28829077]
[1722195706898,0.33024842,68301.0,68300.0,0.28829077]
[1722195707097,0.32024842,68301.0,68300.0,0.28829077]
[1722195707397,0.32224842,68301.0,68300.0,0.28929077]
[1722195709447,0.17410367,68301.0,68300.0,0.17216077]
[1722195710377,0.17423821,68301.0,68300.0,0.17216077]
[1722195712022,0.02208926,68301.0,68300.0,0.52355077]
[1722195713142,0.02008926,68301.0,68300.0,0.52255077]
[1722195713330,0.02208926,68301.0,68300.0,0.52255077]
[1722195713556,0.02222067,68301.0,68300.0,0.52255077]
[1722195713794,0.01866647,68301.0,68300.0,0.52255077]
[1722195714022,0.02022067,68301.0,68300.0,0.52355077]
[1722195714242,0.02022067,68301.0,68300.0,0.52255077]
[1722195714675,0.02122067,68301.0,68300.0,0.52355077]
[1722195715546,0.01966647,68301.0,68300.0,0.52355077]
[1722195715788,0.02122067,68301.0,68300.0,0.52355077]
[1722195717018,0.02122814,68301.0,68300.0,0.52355077]
[1722195718285,0.02119389,68301.0,68300.0,0.52355077]
[1722195720190,0.0211522,68301.0,68300.0,0.52355077]
[1722195720682,0.02128547,68301.0,68300.0,0.52355077]
[1722195722483,0.02123876,68301.0,68300.0,0.52355077]
[1722195724149,0.02123876,68301.0,68300.0,0.28929077]
[1722195724712,0.07352427,68301.0,68300.0,0.28929077]
[1722195725558,0.07333706,68301.0,68300.0,0.28929077]
[1722195728307,0.07333706,68301.0,68300.0,0.17216077]
[1722195728628,0.07333706,68301.0,68300.0,0.28929077]
[1722195728828,0.07301617,68301.0,68300.0,0.28929077]
[1722195731103,0.07301617,68301.0,68300.0,0.17216077]
[1722195731321,0.07301617,68301.0,68300.0,0.02506077]
[1722195731322,0.65865817,68301.0,68300.0,0.02506077]
[1722195731589,0.5724284,68301.0,68300.0,0.010064]
[1722195731980,0.57242956,68301.0,68300.0,0.010064]
[1722195732183,0.57250462,68301.0,68300.0,0.010064]
[1722195732740,0.57188063,68301.0,68300.0,0.010064]
[1722195733284,0.57188063,68301.0,68300.0,0.009064]
[1722195733485,0.80613763,68301.0,68300.0,0.009064]
[1722195733691,0.80613763,68301.0,68300.0,0.013064]
[1722195733894,0.5890362,68301.0,68300.0,0.013064]
[1722195734099,0.80461635,68301.0,68300.0,0.013064]
[1722195734339,0.80617055,68301.0,68300.0,0.013064]
[1722195734531,0.80507122,68301.0,68300.0,0.013064]
[1722195734886,0.57181422,68301.0,68300.0,0.013064]
[1722195735119,0.80607122,68301.0,68300.0,0.013064]